{"text_format":"1","workbook":"xlsx","n_sheets":1,"sheets":["Tabelle1"],"not_rendered":{"charts":0,"images":0,"macros":1,"external_links":0,"defined_names":70,"comments":1,"pivot_tables":0},"unopened":[],"bounds":{"document_bytes":16777216,"sheet_cells":100000,"rows_first":2000,"rows_last":500,"rows_between":2000,"halvings":0,"cell_chars":16384,"cell_head_chars":4096},"cells_cut":0,"cells_raw":0,"read":"whole","date_system":"1900"}

{"sheet":"Tabelle1","index":0,"n_rows":80,"n_cols":69,"rows_kept":80,"cut":false,"hidden":false,"merged":[]}
["OZ","Typ","Beschreibung","Langtext","Menge","Einheit","EP [EUR]","GP [EUR]","TB Anzahl","TB1 Ansprache","TB1 Bietertext","TB1 Absprache","TB2 Ansprache","TB2 Bietertext","TB2 Absprache","TB3 Ansprache","TB3 Bietertext","TB3 Absprache","TB4 Ansprache","TB4 Bietertext","TB4 Absprache","TB5 Ansprache","TB5 Bietertext","TB5 Absprache","TB6 Ansprache","TB6 Bietertext","TB6 Absprache","TB7 Ansprache","TB7 Bietertext","TB7 Absprache","TB8 Ansprache","TB8 Bietertext","TB8 Absprache","TB9 Ansprache","TB9 Bietertext","TB9 Absprache","TB10 Ansprache","TB10 Bietertext","TB10 Absprache","TB11 Ansprache","TB11 Bietertext","TB11 Absprache","TB12 Ansprache","TB12 Bietertext","TB12 Absprache","TB13 Ansprache","TB13 Bietertext","TB13 Absprache","TB14 Ansprache","TB14 Bietertext","TB14 Absprache","TB15 Ansprache","TB15 Bietertext","TB15 Absprache","TB16 Ansprache","TB16 Bietertext","TB16 Absprache","TB17 Ansprache","TB17 Bietertext","TB17 Absprache","TB18 Ansprache","TB18 Bietertext","TB18 Absprache","TB19 Ansprache","TB19 Bietertext","TB19 Absprache","TB20 Ansprache","TB20 Bietertext","TB20 Absprache"]
[null,null,"Schädlingsbekämpfungsmaßnahmen",null,null,null,null,{"$f":"H4+H16+H28+H40+H53+H68","v":0}]
[null,"I","Vorbemerkung","Vorbemerkung\n\nDieser Rahmenvertrag enthält die allgemeinen Rahmenbedingungen für die Durchführung von Schädlingsbekämpfungsmaßnahmen, die durch den Auftraggeber im Bedarfsfall durch „Einzelabrufe“ beauftragt werden können.\n\nEin solcher Einzelabruf besteht dann aus einem Beauftragungsschreiben und einer/einem formlosen E-Mail/Anschreiben des jeweils zuständigen Sachbearbeiters mit den genauen Angaben, was abgerufen wird, sowie einem Auszug der AGB der Stadt Essen, da der Umfang und der Zeitpunkt des jeweiligen Leistungsabrufes nicht vorab bestimmbar sind.\n\nDie jeweiligen Mengen sind geschätzt aufgrund der vorliegenden Auftragslage. Es kann jedoch zu Mehr- oder Mindermengen kommen. Das Rahmenvereinbarungsverhältnis begründet keinen Anspruch des Auftragnehmers auf Abruf einer bestimmten Mindestanzahl von Einzelabrufen. Es besteht insofern keine Abnahmeverpflichtung des Auftraggebers. Die im Leistungsverzeichnis gebildeten Massen-Vordersätze sind derzeit geschätzt aufgrund der Erfahrungswerte der letzten Jahre, sowie der geplanten Maßnahmen und dienen lediglich zur sachlich angemessenen Bewertung der preislichen Angebotsparameter. \n\nDie Angebotspreise sind Festpreise und gelten vom 02.03.2026 bis zum 31.12.2026.\n\nLeistungsverzeichnis zur Schädlingsbekämpfung im Grugapark sowie in städtischen Grünanlagen, auf Friedhöfen, auf Betriebshöfen und auf Kinderspielplätzen (hier vorwiegend Rattenbekämpfung).\n\nDas Leistungsverzeichnis ist in 6 Abschnitte geteilt und muss vollständig angeboten werden. Die Rechnungsstellung hat abschnittsweise zu erfolgen.\n\nSachbearbeiter:\n\nAbschnitt1-Bereich Nord\nFrau Krampe\nFon 0201/88-67361\nFax 0201/88-67335\nMobil 0160/8862840\nannette.krampe@gge.essen.de\n\nAbschnitt 2-Bereich Südwest\nHerr Koch\nFon 0201/88-67332\nFax 0201/88-67226\nMobil 0160/2312586\nleonard-elias.koch@gge.essen.de\n\nAbschnitt 3-Bereich Südost\nHerr Stähler\nFon 0201/88-67328\nFax 0201/88-67399\nMobil 0160/90586401\narmin.staehler@gge.essen.de\n\nAbschnitt 4-Forst\nHerr Caterisano\nFon 0201/88-67416\nFax 0201/88-67417\ngiacomo.caterisano@gge.essen.de\n\nAbschnitt 5-Grugapark\nHerr Krupp\nFon 0201/88-83212\nFax 0201/88-83214\nMobil 0160/90629060\nmario.krupp@grugapark.essen.de\n\nAbschnitt 6-Friedhöfe\nHerr Hombitzer\nFon 0201/88-67680\nFax 0201/88-67683\nMobil 0170/9137084\nmarvin.hombitzer@gge.essen.de"]
["01","1","Bereich Nord",null,null,null,null,{"$f":"SUM(H8:H10)+SUM(H13:H15)","v":0}]
["01.11","2","Schädlingsbekämpfung",null,null,null,null,{"$f":"SUM(H8:H10)+SUM(H13:H15)","v":0}]
["01.11.01","3","Nagerbekämpfung",null,null,null,null,{"$f":"SUM(H8:H10)","v":0}]
["01.11.01.1010","I","Nagerbekämpfung","Nagerbekämpfung\nAnmerkung\n\nAllgemeine Anforderungen:\nDer Auftragnehmer verpflichtet sich, an vom Auftraggeber zugewiesenen Orten auf städtischen Lagerplätzen und innerhalb städtischer Grünanlagen Nagerbekämpfungsmaßnahmen (i.d.R. Ratten und Mäuse) nach den \"Allgemeinen Kriterien (ab Version 1.3 vom 30.07.2014 aufwärts) einer guten fachlichen Anwendung von Fraßködern bei der Nagetierbekämpfung mit Antikoagulanzien durch sachkundige Verwender mit Sachkundenachweis gemäß Anhang I, Nr. 3 Gefahrstoffverordnung und berufsmäßige Verwender mit Sachkunde\" mit dem Ziel durchzuführen, den Befall zu kontrollieren und erfolgreich zu tilgen.\nDer Auftragnehmer hat dafür Sorge zu tragen, dass Menschen, Haus-, Nutz- und Wildtiere nicht gefährdet oder in ihrer Gesundheit beeinträchtigt werden.\n\nPersonalanforderungen:\nFür die Arbeiten dürfen nur Fachkräfte eingesetzt werden, die sachkundig sind im Sinne der Gef.StoffV/TRGS 523 und des Tierschutzgesetzes bzw. ausgebildet gemäß der Verordnung über die Berufsausbildung zum Schädlingsbekämpfer/in \n15. Juli 2004 (Bundesgesetzblatt Teil I S. 1638 vom \n20. Juli 2004) oder einen gültigen Sachkundenachweis zum Töten von Wirbeltieren besitzen.\n\nEinsatz von Bekämpfungsmittel:\nEs dürfen nur Schädlingsbekämpfungsmittel eingesetzt werden, die auf der Liste der zugelassenen Biozidprodukte in der Produktart 14/Rodentizide, publiziert von der Bundesanstalt für Arbeitsschutz und Arbeitsmedizin (BAUA), geführt werden. Das Präparat muss in der geeigneten Köderzubereitung angewendet werden.\nDas zur Anwendung vorgesehene Präparat ist Grün und Gruga auf Anforderung vor Aufnahme der Tätigkeiten zu benennen. Erfolgen binnen einer Woche keine Einwände, gilt es als genehmigt.\n\nArbeitsbeschreibung:\nVorrangig sind Wanderratten (Rattus norvegicus) und im Einzelfall auftretende Hausratten (Rattus rattus) und diverse Mäusearten zu bekämpfen.\nMit der Erstbestückung der Köderstationen bzw. der Behandlung der Ratten- und Mäuseschlupflöcher ist unmittelbar nach Auftragserteilung zu beginnen.\nBei der Neuinstallation von Köderstationen ist darauf zu achten, dass diese fest montiert werden, um Missbrauch vorzubeugen.\nDas Schädlingsbekämpfungsunternehmen ist verpflichtet, bei der Auslegung von Wirkstoffen Warnschilder anzubringen.\nAlte, nicht mehr verwendbare Köderstationen sind vom Auftragnehmer zu entfernen und zu entsorgen.\n\nDokumentation:\nDer Auftragnehmer liefert dem Auftraggeber bzw. den zuständigen Sachbearbeitern nach jedem Servicegang eine aussagekräftige Dokumentation aller Bekämpfungsmaßnahmen und Aktivitäten.\nFachliche Entscheidungen, wie z. B. Veränderungen der Kontrollintervalle, Erhöhung bzw. Verminderung der Anzahl der Kontrollstellen etc., sind mit der zuständigen Sachbearbeitung abzusprechen.\nEinmal jährlich werden die Ergebnisse der durchgeführten Aktivitäten analysiert und zusammen mit den Verantwortlichen besprochen.",null,null,null,null,0]
["01.11.01.1010"," ","Rattenköderstationen liefern und fachgerecht aufstellen.","Rattenköderstationen liefern und an diversen Standorten nach Angabe des Auftraggebers fachgerecht aufstellen, mit Köder bestücken und nach den \"Allgemeinen Kriterien\" kontrollieren.\nJedes zusätzliche Aufstellen von Köderstationen bedarf der ausdrücklichen Zustimmung des Auftraggebers. Der Ort und Zeitpunkt ist dabei genau zu benennen.\nDie Köderstationen sind nach 1 Monat aufzunehmen und zu entsorgen, ebenso unberührte Köder.\nUnbeschädigte Köderstationen und unberührte Köder können wiederverwendet werden.",132,"St",null,{"$f":"ROUND(E8*G8,2)","v":0},0]
["01.11.01.1030"," ","Vorhandene Köderstationen/Schlupflöcher bestücken.","Vorhandene Köderstationen/Nagerschlupflöcher an diversen Standorten innerhalb der turnusmäßigen Kontrollen (erneut) bestücken, einschließlich Anfahrt.",165,"St",null,{"$f":"ROUND(E9*G9,2)","v":0},0]
["01.11.01.1040"," ","Tote Nager aufnehmen und entsorgen.","Tote Nager aufnehmen und entsorgen.",12,"St",null,{"$f":"ROUND(E10*G10,2)","v":0},0]
["01.11.02","3","Zusätzliche Schädlingsbekämpfungsmaßnahmen",null,null,null,null,{"$f":"SUM(H13:H15)","v":0}]
["01.11.02.1010","I","Zusätzliche Schädlingsbekämpfungsmaßnahmen","Zusätzliche Schädlingsbekämpfungsmaßnahmen\nAnmerkung\nBei den nachfolgenden Leistungspositionen über diverse Schädlingsbekämpfungsmaßnahmen erfolgt der Einsatz grundsätzlich auf Abruf und ist kurzfristig durchzuführen. Der Einsatzort befindet sich innerhalb des Essener Stadtgebietes und wird bei Abruf von der zuständigen Bauleitung mitgeteilt.\n\nBei der Beseitigung von Nestern des Eichenprozessionsspinners handelt es sich um Akutfälle, die noch am selben Tag des Abrufs dieser Leistung oder spätestens am Folgetag vom Auftragnehmer ausgeführt werden muss. \nBei Bäumen im öffentlichen Raum sind die Richtlinien für die Sicherung von Arbeitsstellen an Straßen (RSA) zu beachten.\nDies ist bei der Kalkulation zu berücksichtigen.",null,null,null,null,0]
["01.11.02.1010"," ","Wespenbekämpfung durchführen.","Wespenbekämpfung im Bereich von Spielplätzen, Grünanlagen, Gebäuden o.ä. im Nebel-, Schaum- oder Puderverfahren durchführen.",5,"St",null,{"$f":"ROUND(E13*G13,2)","v":0},0]
["01.11.02.1100"," ","Hornissenbekämpfung durchführen.","Hornissenbekämpfung (Vespa velutina) im Bereich von Spielplätzen, Grünanlagen, Gebäuden o.ä. im Nebel-, Schaum- oder Puderverfahren durchführen.",10,"St",null,{"$f":"ROUND(E14*G14,2)","v":0},0]
["01.11.02.1110"," ","Einsatz einer Arbeitsbühne als Zulage zur Wespen-/Hornissenentfernung.","Einsatz einer LKW-Arbeitsbühne mit einer Arbeitshöhe bis maximal 25 m und zulässigem Gesamtgewicht bis 3,5 t als Zulage zur Entfernung von Wespen- oder Hornissennestern bei unzugänglichen Standorten.",3,"St",null,{"$f":"ROUND(E15*G15,2)","v":0},0]
["02","1","Bereich Südwest",null,null,null,null,{"$f":"SUM(H20:H22)+SUM(H25:H27)","v":0}]
["02.11","2","Schädlingsbekämpfung",null,null,null,null,{"$f":"SUM(H20:H22)+SUM(H25:H27)","v":0}]
["02.11.01","3","Nagerbekämpfung",null,null,null,null,{"$f":"SUM(H20:H22)","v":0}]
["02.11.01.1010","I","Nagerbekämpfung","Nagerbekämpfung\nAnmerkung\n\nAllgemeine Anforderungen:\nDer Auftragnehmer verpflichtet sich, an vom Auftraggeber zugewiesenen Orten auf städtischen Lagerplätzen und innerhalb städtischer Grünanlagen Nagerbekämpfungsmaßnahmen (i.d.R. Ratten und Mäuse) nach den \"Allgemeinen Kriterien (ab Version 1.3 vom 30.07.2014 aufwärts) einer guten fachlichen Anwendung von Fraßködern bei der Nagetierbekämpfung mit Antikoagulanzien durch sachkundige Verwender mit Sachkundenachweis gemäß Anhang I, Nr. 3 Gefahrstoffverordnung und berufsmäßige Verwender mit Sachkunde\" mit dem Ziel durchzuführen, den Befall zu kontrollieren und erfolgreich zu tilgen.\nDer Auftragnehmer hat dafür Sorge zu tragen, dass Menschen, Haus-, Nutz- und Wildtiere nicht gefährdet oder in ihrer Gesundheit beeinträchtigt werden.\n\nPersonalanforderungen:\nFür die Arbeiten dürfen nur Fachkräfte eingesetzt werden, die sachkundig sind im Sinne der Gef.StoffV/TRGS 523 und des Tierschutzgesetzes bzw. ausgebildet gemäß der Verordnung über die Berufsausbildung zum Schädlingsbekämpfer/in \n15. Juli 2004 (Bundesgesetzblatt Teil I S. 1638 vom \n20. Juli 2004) oder einen gültigen Sachkundenachweis zum Töten von Wirbeltieren besitzen.\n\nEinsatz von Bekämpfungsmittel:\nEs dürfen nur Schädlingsbekämpfungsmittel eingesetzt werden, die auf der Liste der zugelassenen Biozidprodukte in der Produktart 14/Rodentizide, publiziert von der Bundesanstalt für Arbeitsschutz und Arbeitsmedizin (BAUA), geführt werden. Das Präparat muss in der geeigneten Köderzubereitung angewendet werden.\nDas zur Anwendung vorgesehene Präparat ist Grün und Gruga auf Anforderung vor Aufnahme der Tätigkeiten zu benennen. Erfolgen binnen einer Woche keine Einwände, gilt es als genehmigt.\n\nArbeitsbeschreibung:\nVorrangig sind Wanderratten (Rattus norvegicus) und im Einzelfall auftretende Hausratten (Rattus rattus) und diverse Mäusearten zu bekämpfen.\nMit der Erstbestückung der Köderstationen bzw. der Behandlung der Ratten- und Mäuseschlupflöcher ist unmittelbar nach Auftragserteilung zu beginnen.\nBei der Neuinstallation von Köderstationen ist darauf zu achten, dass diese fest montiert werden, um Missbrauch vorzubeugen.\nDas Schädlingsbekämpfungsunternehmen ist verpflichtet, bei der Auslegung von Wirkstoffen Warnschilder anzubringen.\nAlte, nicht mehr verwendbare Köderstationen sind vom Auftragnehmer zu entfernen und zu entsorgen.\n\nDokumentation:\nDer Auftragnehmer liefert dem Auftraggeber bzw. den zuständigen Sachbearbeitern nach jedem Servicegang eine aussagekräftige Dokumentation aller Bekämpfungsmaßnahmen und Aktivitäten.\nFachliche Entscheidungen, wie z. B. Veränderungen der Kontrollintervalle, Erhöhung bzw. Verminderung der Anzahl der Kontrollstellen etc., sind mit der zuständigen Sachbearbeitung abzusprechen.\nEinmal jährlich werden die Ergebnisse der durchgeführten Aktivitäten analysiert und zusammen mit den Verantwortlichen besprochen.",null,null,null,null,0]
["02.11.01.1010"," ","Rattenköderstationen liefern und fachgerecht aufstellen.","Rattenköderstationen liefern und an diversen Standorten nach Angabe des Auftraggebers fachgerecht aufstellen, mit Köder bestücken und nach den \"Allgemeinen Kriterien\" kontrollieren.\nJedes zusätzliche Aufstellen von Köderstationen bedarf der ausdrücklichen Zustimmung des Auftraggebers. Der Ort und Zeitpunkt ist dabei genau zu benennen.\nDie Köderstationen sind nach 1 Monat aufzunehmen und zu entsorgen, ebenso unberührte Köder.\nUnbeschädigte Köderstationen und unberührte Köder können wiederverwendet werden.",122,"St",null,{"$f":"ROUND(E20*G20,2)","v":0},0]
["02.11.01.1030"," ","Vorhandene Köderstationen/Schlupflöcher bestücken.","Vorhandene Köderstationen/Nagerschlupflöcher an diversen Standorten innerhalb der turnusmäßigen Kontrollen (erneut) bestücken, einschließlich Anfahrt.",285,"St",null,{"$f":"ROUND(E21*G21,2)","v":0},0]
["02.11.01.1040"," ","Tote Nager aufnehmen und entsorgen.","Tote Nager aufnehmen und entsorgen.",1,"St",null,{"$f":"ROUND(E22*G22,2)","v":0},0]
["02.11.02","3","Zusätzliche Schädlingsbekämpfungsmaßnahmen",null,null,null,null,{"$f":"SUM(H25:H27)","v":0}]
["02.11.02.1010","I","Zusätzliche Schädlingsbekämpfungsmaßnahmen","Zusätzliche Schädlingsbekämpfungsmaßnahmen\nAnmerkung\nBei den nachfolgenden Leistungspositionen über diverse Schädlingsbekämpfungsmaßnahmen erfolgt der Einsatz grundsätzlich auf Abruf und ist kurzfristig durchzuführen. Der Einsatzort befindet sich innerhalb des Essener Stadtgebietes und wird bei Abruf von der zuständigen Bauleitung mitgeteilt.\n\nBei der Beseitigung von Nestern des Eichenprozessionsspinners handelt es sich um Akutfälle, die noch am selben Tag des Abrufs dieser Leistung oder spätestens am Folgetag vom Auftragnehmer ausgeführt werden muss. \nBei Bäumen im öffentlichen Raum sind die Richtlinien für die Sicherung von Arbeitsstellen an Straßen (RSA) zu beachten.\nDies ist bei der Kalkulation zu berücksichtigen.",null,null,null,null,0]
["02.11.02.1010"," ","Wespenbekämpfung durchführen.","Wespenbekämpfung im Bereich von Spielplätzen, Grünanlagen, Gebäuden o.ä. im Nebel-, Schaum- oder Puderverfahren durchführen.",2,"St",null,{"$f":"ROUND(E25*G25,2)","v":0},0]
["02.11.02.1100"," ","Hornissenbekämpfung durchführen.","Hornissenbekämpfung (Vespa velutina) im Bereich von Spielplätzen, Grünanlagen, Gebäuden o.ä. im Nebel-, Schaum- oder Puderverfahren durchführen.",2,"St",null,{"$f":"ROUND(E26*G26,2)","v":0},0]
["02.11.02.1110"," ","Einsatz einer Arbeitsbühne als Zulage zur Wespen-/Hornissenentfernung.","Einsatz einer LKW-Arbeitsbühne mit einer Arbeitshöhe bis maximal 25 m und zulässigem Gesamtgewicht bis 3,5 t als Zulage zur Entfernung von Wespen- oder Hornissennestern bei unzugänglichen Standorten.",2,"St",null,{"$f":"ROUND(E27*G27,2)","v":0},0]
["03","1","Bereich Südost",null,null,null,null,{"$f":"SUM(H32:H34)+SUM(H37:H39)","v":0}]
["03.11","2","Schädlingsbekämpfung",null,null,null,null,{"$f":"SUM(H32:H34)+SUM(H37:H39)","v":0}]
["03.11.01","3","Nagerbekämpfung",null,null,null,null,{"$f":"SUM(H32:H34)","v":0}]
["03.11.01.1010","I","Nagerbekämpfung","Nagerbekämpfung\nAnmerkung\n\nAllgemeine Anforderungen:\nDer Auftragnehmer verpflichtet sich, an vom Auftraggeber zugewiesenen Orten auf städtischen Lagerplätzen und innerhalb städtischer Grünanlagen Nagerbekämpfungsmaßnahmen (i.d.R. Ratten und Mäuse) nach den \"Allgemeinen Kriterien (ab Version 1.3 vom 30.07.2014 aufwärts) einer guten fachlichen Anwendung von Fraßködern bei der Nagetierbekämpfung mit Antikoagulanzien durch sachkundige Verwender mit Sachkundenachweis gemäß Anhang I, Nr. 3 Gefahrstoffverordnung und berufsmäßige Verwender mit Sachkunde\" mit dem Ziel durchzuführen, den Befall zu kontrollieren und erfolgreich zu tilgen.\nDer Auftragnehmer hat dafür Sorge zu tragen, dass Menschen, Haus-, Nutz- und Wildtiere nicht gefährdet oder in ihrer Gesundheit beeinträchtigt werden.\n\nPersonalanforderungen:\nFür die Arbeiten dürfen nur Fachkräfte eingesetzt werden, die sachkundig sind im Sinne der Gef.StoffV/TRGS 523 und des Tierschutzgesetzes bzw. ausgebildet gemäß der Verordnung über die Berufsausbildung zum Schädlingsbekämpfer/in \n15. Juli 2004 (Bundesgesetzblatt Teil I S. 1638 vom \n20. Juli 2004) oder einen gültigen Sachkundenachweis zum Töten von Wirbeltieren besitzen.\n\nEinsatz von Bekämpfungsmittel:\nEs dürfen nur Schädlingsbekämpfungsmittel eingesetzt werden, die auf der Liste der zugelassenen Biozidprodukte in der Produktart 14/Rodentizide, publiziert von der Bundesanstalt für Arbeitsschutz und Arbeitsmedizin (BAUA), geführt werden. Das Präparat muss in der geeigneten Köderzubereitung angewendet werden.\nDas zur Anwendung vorgesehene Präparat ist Grün und Gruga auf Anforderung vor Aufnahme der Tätigkeiten zu benennen. Erfolgen binnen einer Woche keine Einwände, gilt es als genehmigt.\n\nArbeitsbeschreibung:\nVorrangig sind Wanderratten (Rattus norvegicus) und im Einzelfall auftretende Hausratten (Rattus rattus) und diverse Mäusearten zu bekämpfen.\nMit der Erstbestückung der Köderstationen bzw. der Behandlung der Ratten- und Mäuseschlupflöcher ist unmittelbar nach Auftragserteilung zu beginnen.\nBei der Neuinstallation von Köderstationen ist darauf zu achten, dass diese fest montiert werden, um Missbrauch vorzubeugen.\nDas Schädlingsbekämpfungsunternehmen ist verpflichtet, bei der Auslegung von Wirkstoffen Warnschilder anzubringen.\nAlte, nicht mehr verwendbare Köderstationen sind vom Auftragnehmer zu entfernen und zu entsorgen.\n\nDokumentation:\nDer Auftragnehmer liefert dem Auftraggeber bzw. den zuständigen Sachbearbeitern nach jedem Servicegang eine aussagekräftige Dokumentation aller Bekämpfungsmaßnahmen und Aktivitäten.\nFachliche Entscheidungen, wie z. B. Veränderungen der Kontrollintervalle, Erhöhung bzw. Verminderung der Anzahl der Kontrollstellen etc., sind mit der zuständigen Sachbearbeitung abzusprechen.\nEinmal jährlich werden die Ergebnisse der durchgeführten Aktivitäten analysiert und zusammen mit den Verantwortlichen besprochen.",null,null,null,null,0]
["03.11.01.1010"," ","Rattenköderstationen liefern und fachgerecht aufstellen.","Rattenköderstationen liefern und an diversen Standorten nach Angabe des Auftraggebers fachgerecht aufstellen, mit Köder bestücken und nach den \"Allgemeinen Kriterien\" kontrollieren.\nJedes zusätzliche Aufstellen von Köderstationen bedarf der ausdrücklichen Zustimmung des Auftraggebers. Der Ort und Zeitpunkt ist dabei genau zu benennen.\nDie Köderstationen sind nach 1 Monat aufzunehmen und zu entsorgen, ebenso unberührte Köder.\nUnbeschädigte Köderstationen und unberührte Köder können wiederverwendet werden.",150,"St",null,{"$f":"ROUND(E32*G32,2)","v":0},0]
["03.11.01.1030"," ","Vorhandene Köderstationen/Schlupflöcher bestücken.","Vorhandene Köderstationen/Nagerschlupflöcher an diversen Standorten innerhalb der turnusmäßigen Kontrollen (erneut) bestücken, einschließlich Anfahrt.",238,"St",null,{"$f":"ROUND(E33*G33,2)","v":0},0]
["03.11.01.1040"," ","Tote Nager aufnehmen und entsorgen.","Tote Nager aufnehmen und entsorgen.",30,"St",null,{"$f":"ROUND(E34*G34,2)","v":0},0]
["03.11.02","3","Zusätzliche Schädlingsbekämpfungsmaßnahmen",null,null,null,null,{"$f":"SUM(H37:H39)","v":0}]
["03.11.02.1010","I","Zusätzliche Schädlingsbekämpfungsmaßnahmen","Zusätzliche Schädlingsbekämpfungsmaßnahmen\nAnmerkung\nBei den nachfolgenden Leistungspositionen über diverse Schädlingsbekämpfungsmaßnahmen erfolgt der Einsatz grundsätzlich auf Abruf und ist kurzfristig durchzuführen. Der Einsatzort befindet sich innerhalb des Essener Stadtgebietes und wird bei Abruf von der zuständigen Bauleitung mitgeteilt.\n\nBei der Beseitigung von Nestern des Eichenprozessionsspinners handelt es sich um Akutfälle, die noch am selben Tag des Abrufs dieser Leistung oder spätestens am Folgetag vom Auftragnehmer ausgeführt werden muss. \nBei Bäumen im öffentlichen Raum sind die Richtlinien für die Sicherung von Arbeitsstellen an Straßen (RSA) zu beachten.\nDies ist bei der Kalkulation zu berücksichtigen.",null,null,null,null,0]
["03.11.02.1010"," ","Wespenbekämpfung durchführen.","Wespenbekämpfung im Bereich von Spielplätzen, Grünanlagen, Gebäuden o.ä. im Nebel-, Schaum- oder Puderverfahren durchführen.",15,"St",null,{"$f":"ROUND(E37*G37,2)","v":0},0]
["03.11.02.1100"," ","Hornissenbekämpfung durchführen.","Hornissenbekämpfung (Vespa velutina) im Bereich von Spielplätzen, Grünanlagen, Gebäuden o.ä. im Nebel-, Schaum- oder Puderverfahren durchführen.",5,"St",null,{"$f":"ROUND(E38*G38,2)","v":0},0]
["03.11.02.1110"," ","Einsatz einer Arbeitsbühne als Zulage zur Wespen-/Hornissenentfernung.","Einsatz einer LKW-Arbeitsbühne mit einer Arbeitshöhe bis maximal 25 m und zulässigem Gesamtgewicht bis 3,5 t als Zulage zur Entfernung von Wespen- oder Hornissennestern bei unzugänglichen Standorten.",2,"St",null,{"$f":"ROUND(E39*G39,2)","v":0},0]
["04","1","Forst",null,null,null,null,{"$f":"SUM(H44:H47)+SUM(H50:H52)","v":0}]
["04.11","2","Schädlingsbekämpfung",null,null,null,null,{"$f":"SUM(H44:H47)+SUM(H50:H52)","v":0}]
["04.11.01","3","Nagerbekämpfung",null,null,null,null,{"$f":"SUM(H44:H47)","v":0}]
["04.11.01.1010","I","Nagerbekämpfung","Nagerbekämpfung\nAnmerkung\n\nAllgemeine Anforderungen:\nDer Auftragnehmer verpflichtet sich, an vom Auftraggeber zugewiesenen Orten auf städtischen Lagerplätzen und innerhalb städtischer Grünanlagen Nagerbekämpfungsmaßnahmen (i.d.R. Ratten und Mäuse) nach den \"Allgemeinen Kriterien (ab Version 1.3 vom 30.07.2014 aufwärts) einer guten fachlichen Anwendung von Fraßködern bei der Nagetierbekämpfung mit Antikoagulanzien durch sachkundige Verwender mit Sachkundenachweis gemäß Anhang I, Nr. 3 Gefahrstoffverordnung und berufsmäßige Verwender mit Sachkunde\" mit dem Ziel durchzuführen, den Befall zu kontrollieren und erfolgreich zu tilgen.\nDer Auftragnehmer hat dafür Sorge zu tragen, dass Menschen, Haus-, Nutz- und Wildtiere nicht gefährdet oder in ihrer Gesundheit beeinträchtigt werden.\n\nPersonalanforderungen:\nFür die Arbeiten dürfen nur Fachkräfte eingesetzt werden, die sachkundig sind im Sinne der Gef.StoffV/TRGS 523 und des Tierschutzgesetzes bzw. ausgebildet gemäß der Verordnung über die Berufsausbildung zum Schädlingsbekämpfer/in \n15. Juli 2004 (Bundesgesetzblatt Teil I S. 1638 vom \n20. Juli 2004) oder einen gültigen Sachkundenachweis zum Töten von Wirbeltieren besitzen.\n\nEinsatz von Bekämpfungsmittel:\nEs dürfen nur Schädlingsbekämpfungsmittel eingesetzt werden, die auf der Liste der zugelassenen Biozidprodukte in der Produktart 14/Rodentizide, publiziert von der Bundesanstalt für Arbeitsschutz und Arbeitsmedizin (BAUA), geführt werden. Das Präparat muss in der geeigneten Köderzubereitung angewendet werden.\nDas zur Anwendung vorgesehene Präparat ist Grün und Gruga auf Anforderung vor Aufnahme der Tätigkeiten zu benennen. Erfolgen binnen einer Woche keine Einwände, gilt es als genehmigt.\n\nArbeitsbeschreibung:\nVorrangig sind Wanderratten (Rattus norvegicus) und im Einzelfall auftretende Hausratten (Rattus rattus) und diverse Mäusearten zu bekämpfen.\nMit der Erstbestückung der Köderstationen bzw. der Behandlung der Ratten- und Mäuseschlupflöcher ist unmittelbar nach Auftragserteilung zu beginnen.\nBei der Neuinstallation von Köderstationen ist darauf zu achten, dass diese fest montiert werden, um Missbrauch vorzubeugen.\nDas Schädlingsbekämpfungsunternehmen ist verpflichtet, bei der Auslegung von Wirkstoffen Warnschilder anzubringen.\nAlte, nicht mehr verwendbare Köderstationen sind vom Auftragnehmer zu entfernen und zu entsorgen.\n\nDokumentation:\nDer Auftragnehmer liefert dem Auftraggeber bzw. den zuständigen Sachbearbeitern nach jedem Servicegang eine aussagekräftige Dokumentation aller Bekämpfungsmaßnahmen und Aktivitäten.\nFachliche Entscheidungen, wie z. B. Veränderungen der Kontrollintervalle, Erhöhung bzw. Verminderung der Anzahl der Kontrollstellen etc., sind mit der zuständigen Sachbearbeitung abzusprechen.\nEinmal jährlich werden die Ergebnisse der durchgeführten Aktivitäten analysiert und zusammen mit den Verantwortlichen besprochen.",null,null,null,null,0]
["04.11.01.1010"," ","Rattenköderstationen liefern und fachgerecht aufstellen.","Rattenköderstationen liefern und an diversen Standorten nach Angabe des Auftraggebers fachgerecht aufstellen, mit Köder bestücken und nach den \"Allgemeinen Kriterien\" kontrollieren.\nJedes zusätzliche Aufstellen von Köderstationen bedarf der ausdrücklichen Zustimmung des Auftraggebers. Der Ort und Zeitpunkt ist dabei genau zu benennen.\nDie Köderstationen sind nach 1 Monat aufzunehmen und zu entsorgen, ebenso unberührte Köder.\nUnbeschädigte Köderstationen und unberührte Köder können wiederverwendet werden.",7,"St",null,{"$f":"ROUND(E44*G44,2)","v":0},0]
["04.11.01.1020"," ","Mäuseköderstationen liefern und fachgerecht aufstellen.","Mäuseköderstationen liefern und an diversen Standorten nach Angabe des Auftraggebers fachgerecht aufstellen, mit Köder bestücken und nach den \"Allgemeinen Kriterien\" kontrollieren.\nJedes zusätzliche Aufstellen von Köderstationen bedarf der ausdrücklichen Zustimmung des Auftraggebers. Der Ort und Zeitpunkt ist dabei genau zu benennen.\nDie Köderstationen sind nach 1 Monat aufzunehmen und zu entsorgen, ebenso unberührte Köder.\nUnbeschädigte Köderstationen und unberührte Köder können wiederverwendet werden.",5,"St",null,{"$f":"ROUND(E45*G45,2)","v":0},0]
["04.11.01.1030"," ","Vorhandene Köderstationen/Schlupflöcher bestücken.","Vorhandene Köderstationen/Nagerschlupflöcher an diversen Standorten innerhalb der turnusmäßigen Kontrollen (erneut) bestücken, einschließlich Anfahrt.",24,"St",null,{"$f":"ROUND(E46*G46,2)","v":0},0]
["04.11.01.1040"," ","Tote Nager aufnehmen und entsorgen.","Tote Nager aufnehmen und entsorgen.",3,"St",null,{"$f":"ROUND(E47*G47,2)","v":0},0]
["04.11.02","3","Zusätzliche Schädlingsbekämpfungsmaßnahmen",null,null,null,null,{"$f":"SUM(H50:H52)","v":0}]
["04.11.02.1010","I","Zusätzliche Schädlingsbekämpfungsmaßnahmen","Zusätzliche Schädlingsbekämpfungsmaßnahmen\nAnmerkung\nBei den nachfolgenden Leistungspositionen über diverse Schädlingsbekämpfungsmaßnahmen erfolgt der Einsatz grundsätzlich auf Abruf und ist kurzfristig durchzuführen. Der Einsatzort befindet sich innerhalb des Essener Stadtgebietes und wird bei Abruf von der zuständigen Bauleitung mitgeteilt.\n\nBei der Beseitigung von Nestern des Eichenprozessionsspinners handelt es sich um Akutfälle, die noch am selben Tag des Abrufs dieser Leistung oder spätestens am Folgetag vom Auftragnehmer ausgeführt werden muss. \nBei Bäumen im öffentlichen Raum sind die Richtlinien für die Sicherung von Arbeitsstellen an Straßen (RSA) zu beachten.\nDies ist bei der Kalkulation zu berücksichtigen.",null,null,null,null,0]
["04.11.02.1010"," ","Wespenbekämpfung durchführen.","Wespenbekämpfung im Bereich von Spielplätzen, Grünanlagen, Gebäuden o.ä. im Nebel-, Schaum- oder Puderverfahren durchführen.",11,"St",null,{"$f":"ROUND(E50*G50,2)","v":0},0]
["04.11.02.1100"," ","Hornissenbekämpfung durchführen.","Hornissenbekämpfung (Vespa velutina) im Bereich von Spielplätzen, Grünanlagen, Gebäuden o.ä. im Nebel-, Schaum- oder Puderverfahren durchführen.",100,"St",null,{"$f":"ROUND(E51*G51,2)","v":0},0]
["04.11.02.1110"," ","Einsatz einer Arbeitsbühne als Zulage zur Wespen-/Hornissenentfernung.","Einsatz einer LKW-Arbeitsbühne mit einer Arbeitshöhe bis maximal 25 m und zulässigem Gesamtgewicht bis 3,5 t als Zulage zur Entfernung von Wespen- oder Hornissennestern bei unzugänglichen Standorten.",90,"St",null,{"$f":"ROUND(E52*G52,2)","v":0},0]
["05","1","Grugapark",null,null,null,null,{"$f":"SUM(H57:H59)+SUM(H62:H67)","v":0}]
["05.11","2","Schädlingsbekämpfung",null,null,null,null,{"$f":"SUM(H57:H59)+SUM(H62:H67)","v":0}]
["05.11.01","3","Nagerbekämpfung",null,null,null,null,{"$f":"SUM(H57:H59)","v":0}]
["05.11.01.1010","I","Nagerbekämpfung","Nagerbekämpfung\nAnmerkung\n\nAllgemeine Anforderungen:\nDer Auftragnehmer verpflichtet sich, an vom Auftraggeber zugewiesenen Orten auf städtischen Lagerplätzen und innerhalb städtischer Grünanlagen Nagerbekämpfungsmaßnahmen (i.d.R. Ratten und Mäuse) nach den \"Allgemeinen Kriterien (ab Version 1.3 vom 30.07.2014 aufwärts) einer guten fachlichen Anwendung von Fraßködern bei der Nagetierbekämpfung mit Antikoagulanzien durch sachkundige Verwender mit Sachkundenachweis gemäß Anhang I, Nr. 3 Gefahrstoffverordnung und berufsmäßige Verwender mit Sachkunde\" mit dem Ziel durchzuführen, den Befall zu kontrollieren und erfolgreich zu tilgen.\nDer Auftragnehmer hat dafür Sorge zu tragen, dass Menschen, Haus-, Nutz- und Wildtiere nicht gefährdet oder in ihrer Gesundheit beeinträchtigt werden.\n\nPersonalanforderungen:\nFür die Arbeiten dürfen nur Fachkräfte eingesetzt werden, die sachkundig sind im Sinne der Gef.StoffV/TRGS 523 und des Tierschutzgesetzes bzw. ausgebildet gemäß der Verordnung über die Berufsausbildung zum Schädlingsbekämpfer/in \n15. Juli 2004 (Bundesgesetzblatt Teil I S. 1638 vom \n20. Juli 2004) oder einen gültigen Sachkundenachweis zum Töten von Wirbeltieren besitzen.\n\nEinsatz von Bekämpfungsmittel:\nEs dürfen nur Schädlingsbekämpfungsmittel eingesetzt werden, die auf der Liste der zugelassenen Biozidprodukte in der Produktart 14/Rodentizide, publiziert von der Bundesanstalt für Arbeitsschutz und Arbeitsmedizin (BAUA), geführt werden. Das Präparat muss in der geeigneten Köderzubereitung angewendet werden.\nDas zur Anwendung vorgesehene Präparat ist Grün und Gruga auf Anforderung vor Aufnahme der Tätigkeiten zu benennen. Erfolgen binnen einer Woche keine Einwände, gilt es als genehmigt.\n\nArbeitsbeschreibung:\nVorrangig sind Wanderratten (Rattus norvegicus) und im Einzelfall auftretende Hausratten (Rattus rattus) und diverse Mäusearten zu bekämpfen.\nMit der Erstbestückung der Köderstationen bzw. der Behandlung der Ratten- und Mäuseschlupflöcher ist unmittelbar nach Auftragserteilung zu beginnen.\nBei der Neuinstallation von Köderstationen ist darauf zu achten, dass diese fest montiert werden, um Missbrauch vorzubeugen.\nDas Schädlingsbekämpfungsunternehmen ist verpflichtet, bei der Auslegung von Wirkstoffen Warnschilder anzubringen.\nAlte, nicht mehr verwendbare Köderstationen sind vom Auftragnehmer zu entfernen und zu entsorgen.\n\nDokumentation:\nDer Auftragnehmer liefert dem Auftraggeber bzw. den zuständigen Sachbearbeitern nach jedem Servicegang eine aussagekräftige Dokumentation aller Bekämpfungsmaßnahmen und Aktivitäten.\nFachliche Entscheidungen, wie z. B. Veränderungen der Kontrollintervalle, Erhöhung bzw. Verminderung der Anzahl der Kontrollstellen etc., sind mit der zuständigen Sachbearbeitung abzusprechen.\nEinmal jährlich werden die Ergebnisse der durchgeführten Aktivitäten analysiert und zusammen mit den Verantwortlichen besprochen.",null,null,null,null,0]
["05.11.01.1010"," ","Rattenköderstationen liefern und fachgerecht aufstellen.","Rattenköderstationen liefern und an diversen Standorten nach Angabe des Auftraggebers fachgerecht aufstellen, mit Köder bestücken und nach den \"Allgemeinen Kriterien\" kontrollieren.\nJedes zusätzliche Aufstellen von Köderstationen bedarf der ausdrücklichen Zustimmung des Auftraggebers. Der Ort und Zeitpunkt ist dabei genau zu benennen.\nDie Köderstationen sind nach 1 Monat aufzunehmen und zu entsorgen, ebenso unberührte Köder.\nUnbeschädigte Köderstationen und unberührte Köder können wiederverwendet werden.",15,"St",null,{"$f":"ROUND(E57*G57,2)","v":0},0]
["05.11.01.1020"," ","Mäuseköderstationen liefern und fachgerecht aufstellen.","Mäuseköderstationen liefern und an diversen Standorten nach Angabe des Auftraggebers fachgerecht aufstellen, mit Köder bestücken und nach den \"Allgemeinen Kriterien\" kontrollieren.\nJedes zusätzliche Aufstellen von Köderstationen bedarf der ausdrücklichen Zustimmung des Auftraggebers. Der Ort und Zeitpunkt ist dabei genau zu benennen.\nDie Köderstationen sind nach 1 Monat aufzunehmen und zu entsorgen, ebenso unberührte Köder.\nUnbeschädigte Köderstationen und unberührte Köder können wiederverwendet werden.",20,"St",null,{"$f":"ROUND(E58*G58,2)","v":0},0]
["05.11.01.1030"," ","Vorhandene Köderstationen/Schlupflöcher bestücken.","Vorhandene Köderstationen/Nagerschlupflöcher an diversen Standorten innerhalb der turnusmäßigen Kontrollen (erneut) bestücken, einschließlich Anfahrt.",350,"St",null,{"$f":"ROUND(E59*G59,2)","v":0},0]
["05.11.02","3","Zusätzliche Schädlingsbekämpfungsmaßnahmen",null,null,null,null,{"$f":"SUM(H62:H67)","v":0}]
["05.11.02.1010","I","Zusätzliche Schädlingsbekämpfungsmaßnahmen","Zusätzliche Schädlingsbekämpfungsmaßnahmen\nAnmerkung\nBei den nachfolgenden Leistungspositionen über diverse Schädlingsbekämpfungsmaßnahmen erfolgt der Einsatz grundsätzlich auf Abruf und ist kurzfristig durchzuführen. Der Einsatzort befindet sich innerhalb des Essener Stadtgebietes und wird bei Abruf von der zuständigen Bauleitung mitgeteilt.\n\nBei der Beseitigung von Nestern des Eichenprozessionsspinners handelt es sich um Akutfälle, die noch am selben Tag des Abrufs dieser Leistung oder spätestens am Folgetag vom Auftragnehmer ausgeführt werden muss. \nBei Bäumen im öffentlichen Raum sind die Richtlinien für die Sicherung von Arbeitsstellen an Straßen (RSA) zu beachten.\nDies ist bei der Kalkulation zu berücksichtigen.",null,null,null,null,0]
["05.11.02.1010"," ","Wespenbekämpfung durchführen.","Wespenbekämpfung im Bereich von Spielplätzen, Grünanlagen, Gebäuden o.ä. im Nebel-, Schaum- oder Puderverfahren durchführen.",10,"St",null,{"$f":"ROUND(E62*G62,2)","v":0},0]
["05.11.02.1030"," ","Schabenbekämpfung mit Ködergelen/Sprühverfahren durchführen 51-150 m².","Schabenbekämpfung in Schauhäusern, diversen Gebäuden o.ä. mit Ködergelen (die für andere Tiere ungefährlich sind) oder im Sprühverfahren durchführen.\nFlächengröße: über 50 bis 150 m²",5,"St",null,0,0]
["05.11.02.1040"," ","Schabenbekämpfung mit Ködergelen/Sprühverfahren durchführen > 150 m².","Schabenbekämpfung in Schauhäusern, diversen Gebäuden o.ä. mit Ködergelen (die für andere Tiere ungefährlich sind) oder im Sprühverfahren durchführen.\nFlächengröße: über 150 m²",10,"St",null,0,0]
["05.11.02.1060"," ","Mardervergrämung durchführen.","Mardervergrämung mit Mitteln auf biologischer Basis durchführen.",1,"St",null,0,0]
["05.11.02.1100"," ","Hornissenbekämpfung durchführen.","Hornissenbekämpfung (Vespa velutina) im Bereich von Spielplätzen, Grünanlagen, Gebäuden o.ä. im Nebel-, Schaum- oder Puderverfahren durchführen.",3,"St",null,0,0]
["05.11.02.1110"," ","Einsatz einer Arbeitsbühne als Zulage zur Wespen-/Hornissenentfernung.","Einsatz einer LKW-Arbeitsbühne mit einer Arbeitshöhe bis maximal 25 m und zulässigem Gesamtgewicht bis 3,5 t als Zulage zur Entfernung von Wespen- oder Hornissennestern bei unzugänglichen Standorten.",1,"St",null,0,0]
["06","1","Friedhöfe",null,null,null,null,{"$f":"SUM(H72:H74)+SUM(H77:H80)","v":0}]
["06.11","2","Schädlingsbekämpfung",null,null,null,null,{"$f":"SUM(H72:H74)+SUM(H77:H80)","v":0}]
["06.11.01","3","Nagerbekämpfung",null,null,null,null,{"$f":"SUM(H72:H74)","v":0}]
["06.11.01.1010","I","Nagerbekämpfung","Nagerbekämpfung\nAnmerkung\n\nAllgemeine Anforderungen:\nDer Auftragnehmer verpflichtet sich, an vom Auftraggeber zugewiesenen Orten auf städtischen Lagerplätzen und innerhalb städtischer Grünanlagen Nagerbekämpfungsmaßnahmen (i.d.R. Ratten und Mäuse) nach den \"Allgemeinen Kriterien (ab Version 1.3 vom 30.07.2014 aufwärts) einer guten fachlichen Anwendung von Fraßködern bei der Nagetierbekämpfung mit Antikoagulanzien durch sachkundige Verwender mit Sachkundenachweis gemäß Anhang I, Nr. 3 Gefahrstoffverordnung und berufsmäßige Verwender mit Sachkunde\" mit dem Ziel durchzuführen, den Befall zu kontrollieren und erfolgreich zu tilgen.\nDer Auftragnehmer hat dafür Sorge zu tragen, dass Menschen, Haus-, Nutz- und Wildtiere nicht gefährdet oder in ihrer Gesundheit beeinträchtigt werden.\n\nPersonalanforderungen:\nFür die Arbeiten dürfen nur Fachkräfte eingesetzt werden, die sachkundig sind im Sinne der Gef.StoffV/TRGS 523 und des Tierschutzgesetzes bzw. ausgebildet gemäß der Verordnung über die Berufsausbildung zum Schädlingsbekämpfer/in \n15. Juli 2004 (Bundesgesetzblatt Teil I S. 1638 vom \n20. Juli 2004) oder einen gültigen Sachkundenachweis zum Töten von Wirbeltieren besitzen.\n\nEinsatz von Bekämpfungsmittel:\nEs dürfen nur Schädlingsbekämpfungsmittel eingesetzt werden, die auf der Liste der zugelassenen Biozidprodukte in der Produktart 14/Rodentizide, publiziert von der Bundesanstalt für Arbeitsschutz und Arbeitsmedizin (BAUA), geführt werden. Das Präparat muss in der geeigneten Köderzubereitung angewendet werden.\nDas zur Anwendung vorgesehene Präparat ist Grün und Gruga auf Anforderung vor Aufnahme der Tätigkeiten zu benennen. Erfolgen binnen einer Woche keine Einwände, gilt es als genehmigt.\n\nArbeitsbeschreibung:\nVorrangig sind Wanderratten (Rattus norvegicus) und im Einzelfall auftretende Hausratten (Rattus rattus) und diverse Mäusearten zu bekämpfen.\nMit der Erstbestückung der Köderstationen bzw. der Behandlung der Ratten- und Mäuseschlupflöcher ist unmittelbar nach Auftragserteilung zu beginnen.\nBei der Neuinstallation von Köderstationen ist darauf zu achten, dass diese fest montiert werden, um Missbrauch vorzubeugen.\nDas Schädlingsbekämpfungsunternehmen ist verpflichtet, bei der Auslegung von Wirkstoffen Warnschilder anzubringen.\nAlte, nicht mehr verwendbare Köderstationen sind vom Auftragnehmer zu entfernen und zu entsorgen.\n\nDokumentation:\nDer Auftragnehmer liefert dem Auftraggeber bzw. den zuständigen Sachbearbeitern nach jedem Servicegang eine aussagekräftige Dokumentation aller Bekämpfungsmaßnahmen und Aktivitäten.\nFachliche Entscheidungen, wie z. B. Veränderungen der Kontrollintervalle, Erhöhung bzw. Verminderung der Anzahl der Kontrollstellen etc., sind mit der zuständigen Sachbearbeitung abzusprechen.\nEinmal jährlich werden die Ergebnisse der durchgeführten Aktivitäten analysiert und zusammen mit den Verantwortlichen besprochen.",null,null,null,null,0]
["06.11.01.1010"," ","Rattenköderstationen liefern und fachgerecht aufstellen.","Rattenköderstationen liefern und an diversen Standorten nach Angabe des Auftraggebers fachgerecht aufstellen, mit Köder bestücken und nach den \"Allgemeinen Kriterien\" kontrollieren.\nJedes zusätzliche Aufstellen von Köderstationen bedarf der ausdrücklichen Zustimmung des Auftraggebers. Der Ort und Zeitpunkt ist dabei genau zu benennen.\nDie Köderstationen sind nach 1 Monat aufzunehmen und zu entsorgen, ebenso unberührte Köder.\nUnbeschädigte Köderstationen und unberührte Köder können wiederverwendet werden.",10,"St",null,{"$f":"ROUND(E72*G72,2)","v":0},0]
["06.11.01.1020"," ","Mäuseköderstationen liefern und fachgerecht aufstellen.","Mäuseköderstationen liefern und an diversen Standorten nach Angabe des Auftraggebers fachgerecht aufstellen, mit Köder bestücken und nach den \"Allgemeinen Kriterien\" kontrollieren.\nJedes zusätzliche Aufstellen von Köderstationen bedarf der ausdrücklichen Zustimmung des Auftraggebers. Der Ort und Zeitpunkt ist dabei genau zu benennen.\nDie Köderstationen sind nach 1 Monat aufzunehmen und zu entsorgen, ebenso unberührte Köder.\nUnbeschädigte Köderstationen und unberührte Köder können wiederverwendet werden.",10,"St",null,{"$f":"ROUND(E73*G73,2)","v":0},0]
["06.11.01.1030"," ","Vorhandene Köderstationen/Schlupflöcher bestücken.","Vorhandene Köderstationen/Nagerschlupflöcher an diversen Standorten innerhalb der turnusmäßigen Kontrollen (erneut) bestücken, einschließlich Anfahrt.",275,"St",null,{"$f":"ROUND(E74*G74,2)","v":0},0]
["06.11.02","3","Zusätzliche Schädlingsbekämpfungsmaßnahmen",null,null,null,null,{"$f":"SUM(H77:H80)","v":0}]
["06.11.02.1010","I","Zusätzliche Schädlingsbekämpfungsmaßnahmen","Zusätzliche Schädlingsbekämpfungsmaßnahmen\nAnmerkung\nBei den nachfolgenden Leistungspositionen über diverse Schädlingsbekämpfungsmaßnahmen erfolgt der Einsatz grundsätzlich auf Abruf und ist kurzfristig durchzuführen. Der Einsatzort befindet sich innerhalb des Essener Stadtgebietes und wird bei Abruf von der zuständigen Bauleitung mitgeteilt.\n\nBei der Beseitigung von Nestern des Eichenprozessionsspinners handelt es sich um Akutfälle, die noch am selben Tag des Abrufs dieser Leistung oder spätestens am Folgetag vom Auftragnehmer ausgeführt werden muss. \nBei Bäumen im öffentlichen Raum sind die Richtlinien für die Sicherung von Arbeitsstellen an Straßen (RSA) zu beachten.\nDies ist bei der Kalkulation zu berücksichtigen.",null,null,null,null,0]
["06.11.02.1010"," ","Wespenbekämpfung durchführen.","Wespenbekämpfung im Bereich von Spielplätzen, Grünanlagen, Gebäuden o.ä. im Nebel-, Schaum- oder Puderverfahren durchführen.",10,"St",null,{"$f":"ROUND(E77*G77,2)","v":0},0]
["06.11.02.1080"," ","Ameisenbekämpfung durchführen.","Ameisenbekämpfung mit Ködergelen (die für andere Tiere ungefährlich sind) oder im Sprühverfahren durchführen.",5,"St",null,{"$f":"ROUND(E78*G78,2)","v":0},0]
["06.11.02.1100"," ","Hornissenbekämpfung durchführen.","Hornissenbekämpfung (Vespa velutina) im Bereich von Spielplätzen, Grünanlagen, Gebäuden o.ä. im Nebel-, Schaum- oder Puderverfahren durchführen.",2,"St",null,{"$f":"ROUND(E79*G79,2)","v":0},0]
["06.11.02.1110"," ","Einsatz einer Arbeitsbühne als Zulage zur Wespen-/Hornissenentfernung.","Einsatz einer LKW-Arbeitsbühne mit einer Arbeitshöhe bis maximal 25 m und zulässigem Gesamtgewicht bis 3,5 t als Zulage zur Entfernung von Wespen- oder Hornissennestern bei unzugänglichen Standorten.",1,"St",null,{"$f":"ROUND(E80*G80,2)","v":0},0]